bitfinex-derivatives/quotes_ETHF0:USTF0_20240924
["timestamp","ask_amount","ask_price","bid_price","bid_amount"]
[1727141417656,0.38069,2627.0,2626.6,1.0531]
[1727141417855,7.265,2627.4,2626.6,1.0531]
[1727141417856,3.2078,2626.9,2626.6,1.0531]
[1727141418047,3.5885,2626.9,2626.6,1.0531]
[1727141418252,3.58849,2626.9,2626.6,1.0531]
[1727141418450,3.58849,2626.9,2626.3,0.39781213]
[1727141418451,3.2078,2626.9,2626.3,0.39781213]
[1727141418753,0.38069,2626.9,2626.3,0.91071213]
[1727141418951,0.38071,2626.8,2626.4,40.8]
[1727141419150,3.2078,2626.9,2626.4,40.8]
[1727141419452,0.38073,2626.6,2626.4,40.8]
[1727141419860,3.2078,2626.9,2626.4,40.8]
[1727141420159,3.2078,2626.9,2626.3,0.91071213]
[1727141420160,0.38076,2626.4,2626.3,0.39781213]
[1727141420464,1.33268,2626.4,2626.3,0.39781213]
[1727141420657,1.33268,2626.4,2625.6,0.5129]
[1727141420658,0.38086,2625.7,2625.6,0.5129]
[1727141421048,0.38085,2625.9,2625.6,0.5129]
[1727141421449,0.38085,2625.8,2625.6,0.5129]
[1727141421654,0.38086,2625.7,2625.6,0.5129]
[1727141421962,0.38085,2625.8,2625.6,0.5129]
[1727141422452,3.977,2626.1,2625.6,0.89378]
[1727141422662,4.35781,2626.1,2625.6,0.5129]
[1727141422954,3.58866,2625.7,2625.6,0.5129]
[1727141423159,3.2078,2625.7,2625.3,0.5353]
[1727141423354,0.38089,2625.6,2625.3,41.3353]
[1727141423554,0.3809,2625.5,2625.2,0.5523]
[1727141423758,0.3809,2625.5,2624.9,0.94507]
[1727141423759,3.2078,2625.4,2624.9,0.5641]
[1727141423952,4.35789,2625.6,2624.9,4.15287]
[1727141424461,7.1848,2625.7,2624.9,3.7719]
[1727141424663,0.38089,2625.6,2625.0,0.38097]
[1727141425157,3.2078,2625.7,2625.1,0.38095]
[1727141425360,3.2078,2625.7,2625.2,0.5279]
[1727141425859,0.38088,2625.6,2625.2,0.5279]
[1727141426065,3.2078,2625.7,2625.2,0.5279]
[1727141426066,3.58867,2625.7,2625.2,0.5279]
[1727141426264,3.2078,2625.7,2625.2,0.5279]
[1727141426963,0.38092,2625.3,2625.2,0.5279]
[1727141427464,0.38094,2625.2,2624.9,0.5641]
[1727141427860,0.38094,2625.2,2624.7,0.5357]
[1727141427861,3.2078,2625.1,2624.7,0.5357]
[1727141428256,3.58874,2625.2,2624.7,41.3357]
[1727141428463,3.2078,2625.5,2624.7,41.3357]
[1727141428655,3.2078,2625.5,2624.8,0.513]
[1727141428656,3.2078,2625.2,2624.8,0.513]
[1727141429168,0.38098,2625.0,2624.8,0.513]
[1727141429560,3.2078,2625.2,2624.8,0.513]
[1727141429767,3.2078,2625.5,2625.0,0.38096]
[1727141430071,3.2078,2625.5,2624.8,1.0339]
[1727141430369,0.7318744,2626.0,2625.1,3.2078]
[1727141430370,3.7566,2626.0,2625.1,3.2078]
[1727141430573,3.7566,2626.0,2625.4,0.3809]
[1727141430574,3.2078,2626.0,2625.4,0.3809]
[1727141430879,3.58863,2626.0,2625.5,1.0794]
[1727141431061,0.38084,2625.9,2625.5,1.0794]
[1727141431673,0.38085,2625.8,2625.5,1.0794]
[1727141432069,0.38084,2625.9,2625.5,1.0794]
[1727141432267,3.2078,2626.0,2625.5,1.0794]
[1727141432467,0.38084,2625.9,2625.5,1.0794]
[1727141432673,3.58863,2626.0,2625.6,3.8088]
[1727141432878,0.5544,2626.8,2625.8,3.2078]
[1727141433086,0.5544,2626.8,2626.2,3.2078]
[1727141433271,3.2078,2627.2,2626.5,3.2078]
[1727141433472,4.67243,2627.2,2626.5,3.2078]
[1727141433778,3.8072,2627.1,2626.2,3.2078]
[1727141433975,3.7208,2627.2,2626.2,3.2078]
[1727141433976,6.4978,2626.9,2626.2,3.2078]
[1727141434168,0.38073,2626.7,2626.2,3.2078]
[1727141434369,0.38073,2626.7,2626.2,44.0078]
[1727141434680,3.2078,2626.9,2626.5,3.2078]
[1727141434973,3.2078,2626.9,2626.2,44.0078]
[1727141435179,3.2078,2626.9,2626.5,3.2078]
[1727141435366,3.2078,2626.9,2626.2,44.38859]
[1727141435573,3.2078,2626.9,2626.2,44.0078]
[1727141435878,0.38072,2626.8,2626.2,44.0078]
[1727141436077,6.4978,2626.9,2626.2,44.0078]
[1727141436378,0.38073,2626.7,2626.2,44.0078]
[1727141436570,6.4978,2626.9,2626.2,44.0078]
[1727141436770,0.38076,2626.4,2626.2,44.0078]
[1727141437171,3.29,2626.6,2626.2,44.0078]
[1727141437371,0.38077,2626.4,2626.2,3.2078]
[1727141437577,0.91846,2626.5,2626.2,3.2078]
[1727141437778,0.5377,2626.5,2626.2,3.2078]
[1727141437979,0.38076,2626.4,2626.2,3.2078]
[1727141438579,0.5377,2626.5,2626.2,3.2078]
[1727141438980,3.2078,2626.9,2626.3,40.8]
[1727141439491,0.38073,2626.7,2626.3,40.8]
[1727141439686,0.38073,2626.7,2626.2,3.2078]
[1727141439891,3.2078,2626.9,2626.2,3.2078]
[1727141440293,0.38074,2626.6,2626.2,44.0078]
[1727141440489,3.2078,2626.9,2626.2,44.0078]
[1727141440691,3.978,2626.8,2626.5,3.2078]
[1727141440991,3.978,2626.8,2626.2,40.8]
[1727141440992,3.978,2626.8,2626.2,44.0078]
[1727141441186,3.978,2626.8,2626.2,3.2078]
[1727141441395,0.38076,2626.5,2626.2,3.2078]
[1727141441581,3.2078,2626.6,2626.2,3.2078]
[1727141441782,0.38078,2626.3,2626.2,3.2078]
[1727141441977,0.5252,2626.4,2625.5,3.2078]
[1727141441978,3.8152,2626.4,2625.5,3.2078]
[1727141442189,6.4978,2626.0,2625.2,4.2853]
[1727141442385,0.38086,2625.8,2625.2,4.2853]
[1727141442581,0.38084,2625.9,2625.2,4.66623]
[1727141442780,0.38084,2625.9,2625.5,3.2078]
[1727141443790,3.978,2626.1,2625.5,3.2078]
[1727141443983,3.2078,2626.3,2625.5,3.2078]
[1727141444184,0.5252,2626.4,2625.8,3.2078]
[1727141444492,0.38079,2626.2,2625.5,3.58869]
[1727141444691,0.38079,2626.2,2625.8,3.2078]
[1727141445284,0.38079,2626.2,2625.5,3.58869]
[1727141445489,0.38081,2626.1,2625.5,3.58869]
[1727141445997,0.38082,2626.0,2625.5,3.2078]
[1727141446192,0.38081,2626.1,2625.5,3.2078]
[1727141446592,0.38084,2625.9,2625.5,3.2078]
[1727141446790,7.1858,2626.3,2625.5,3.2078]
[1727141446993,3.2078,2626.0,2625.5,3.2078]
[1727141447196,0.38083,2626.0,2625.5,3.2078]
[1727141447498,0.5252,2626.4,2625.5,3.2078]
[1727141447684,0.38084,2626.0,2625.5,44.0078]
[1727141447991,0.38086,2625.8,2625.5,3.2078]
[1727141448383,0.38088,2625.7,2625.5,3.2078]
[1727141448785,0.38088,2625.6,2625.5,3.2078]
[1727141449087,3.29,2625.6,2624.6,3.58882]
[1727141449289,0.5239,2625.5,2624.7,0.38101]
[1727141449492,0.9048,2625.5,2624.9,3.58878]
[1727141451599,0.5239,2625.5,2624.9,3.2078]
[1727141451789,0.38091,2625.4,2624.9,3.2078]
[1727141452386,0.5239,2625.5,2624.9,3.2078]
[1727141452603,0.9048,2625.5,2624.9,3.58877]
[1727141452897,0.9048,2625.5,2624.9,3.2078]
[1727141452898,0.5239,2625.5,2624.9,3.2078]
[1727141453103,4.75,2625.9,2625.2,3.2078]
[1727141453285,5.2642,2625.9,2625.3,1.1149]
[1727141453490,0.38089,2625.6,2625.3,1.1149]
[1727141453697,0.95214,2625.8,2625.3,0.5622]
[1727141454002,0.3809,2625.5,2625.3,0.5622]
[1727141454496,0.38091,2625.4,2625.3,0.5622]
[1727141454797,0.3809,2625.5,2625.3,0.5622]
[1727141455301,0.38091,2625.4,2625.3,0.5622]
[1727141455502,0.38088,2625.6,2625.3,0.5622]
[1727141456395,4.201,2625.8,2625.3,0.5622]
[1727141456396,0.38087,2625.7,2625.3,0.5622]
[1727141456594,0.38088,2625.6,2625.3,1.1037]
[1727141457597,3.2078,2625.7,2625.3,1.1037]
[1727141457793,0.38089,2625.6,2625.3,1.1037]
[1727141458196,0.3809,2625.5,2625.3,1.1037]
[1727141458596,3.2078,2625.7,2625.3,1.1037]
[1727141458904,1.0632,2625.9,2625.3,1.1037]
[1727141459103,0.38089,2625.6,2625.3,1.1037]
[1727141459405,0.3809,2625.5,2625.3,1.1037]
[1727141459700,0.38089,2625.6,2625.3,1.1037]
[1727141459904,1.0632,2625.9,2625.3,1.1037]
[1727141459905,0.38087,2625.7,2625.3,1.1037]
[1727141460522,1.46805547,2626.2,2625.4,3.8088]
[1727141460804,12.94901552,2627.0,2626.0,3.2078]
[1727141460805,0.5256,2626.9,2626.0,3.2078]
[1727141461005,0.5256,2626.9,2626.3,3.2078]
[1727141461195,1.46805547,2627.3,2626.1,41.8631]
[1727141461196,0.5256,2627.3,2626.6,3.2078]
[1727141461509,0.90624,2627.3,2626.7,1.0631]
[1727141461806,0.38065,2627.2,2626.7,1.0631]
[1727141462105,0.90624,2627.3,2626.7,1.0631]
[1727141462295,0.5256,2627.3,2626.7,1.0631]
[1727141462603,0.5256,2627.7,2626.9,3.2078]
[1727141462800,3.2078,2627.5,2626.9,3.2078]
[1727141463495,1.46805547,2627.2,2626.9,3.2078]
[1727141464303,1.46805547,2627.1,2626.7,1.0631]
[1727141464495,1.46805547,2627.0,2626.7,1.0631]
[1727141465703,1.46805547,2627.2,2626.9,3.2078]
[1727141465903,1.46805547,2627.3,2626.7,1.0631]
[1727141466094,1.46805547,2627.3,2626.9,3.2078]
[1727141466299,1.46805547,2627.3,2626.7,1.0631]
[1727141467009,1.46805547,2627.2,2626.7,1.0631]
[1727141467304,1.84867547,2627.4,2626.9,3.2078]
[1727141467604,1.46805547,2627.4,2626.9,3.2078]
[1727141467804,1.46805547,2627.5,2626.9,3.2078]
[1727141468205,0.38063,2627.3,2626.9,3.2078]
[1727141468397,1.84868547,2627.3,2626.9,3.2078]
[1727141468800,0.38063,2627.3,2626.9,3.2078]
[1727141469804,0.38065,2627.2,2626.9,3.2078]
[1727141470004,1.84869547,2627.3,2626.9,3.2078]
[1727141470299,1.46805547,2627.5,2626.9,3.2078]
[1727141470501,0.5665,2627.6,2627.2,3.2078]
[1727141470502,2.03455547,2627.6,2627.2,3.2078]
[1727141470803,2.03455547,2627.6,2627.3,1.0577]
[1727141471000,0.5665,2627.6,2627.3,1.0577]
[1727141471203,0.5665,2627.6,2627.2,3.2078]
[1727141471593,0.94709,2627.6,2627.2,3.2078]
[1727141471994,0.5665,2627.6,2627.2,3.2078]
[1727141472198,4.2,2627.8,2627.2,3.2078]
[1727141472499,8.452,2627.9,2627.2,3.2078]
[1727141473006,8.83255,2627.9,2627.2,3.2078]
[1727141473208,0.38056,2627.8,2627.2,3.2078]
[1727141473704,8.452,2627.9,2627.2,3.2078]
[1727141474103,7.4078,2627.9,2627.2,3.2078]
[1727141474304,7.78835,2627.9,2627.2,3.58844]
[1727141474702,0.5244,2628.0,2627.6,3.2078]
[1727141474898,0.90494,2628.0,2627.6,3.2078]
[1727141475098,1.79643758,2628.2,2627.6,44.0078]
[1727141475297,6.4978,2628.5,2627.7,1.0743]
[1727141475298,0.5526,2628.4,2627.7,1.0743]
[1727141475808,0.38056,2627.9,2627.7,0.5586]
[1727141476908,0.95126,2628.2,2627.6,3.2078]
[1727141477203,0.86087,2627.8,2627.6,3.2078]
[1727141477505,0.3806,2627.6,2627.2,3.2078]
[1727141477811,3.2078,2627.7,2627.2,3.2078]
[1727141478109,0.3806,2627.6,2627.2,3.2078]
[1727141478509,0.38063,2627.4,2627.2,3.2078]
[1727141478815,0.476,2627.7,2627.2,3.2078]
[1727141479017,0.476,2627.7,2626.9,3.2078]
[1727141479018,1.01333771,2627.6,2626.9,3.2078]
[1727141479303,0.38064,2627.3,2626.9,3.2078]
[1727141479796,0.38065,2627.2,2626.9,3.2078]
[1727141480107,0.38061,2627.5,2626.9,3.2078]
[1727141480295,0.38061,2627.5,2627.0,0.9172]
[1727141480905,0.476,2627.7,2627.0,0.9172]
[1727141481108,0.38065,2627.2,2627.0,0.9172]
[1727141481603,0.38066,2627.1,2627.0,0.9172]
[1727141481902,0.38065,2627.2,2627.0,0.4429]
[1727141483109,0.38066,2627.2,2626.9,3.2078]
[1727141483299,0.38068,2627.1,2626.9,3.2078]
[1727141483499,0.38068,2627.0,2626.9,3.2078]
[1727141483698,0.95159,2627.3,2626.6,4.1279]
[1727141483900,0.3807,2626.9,2626.6,4.1279]
[1727141484095,0.38071,2626.8,2626.6,4.1279]
[1727141484602,0.38072,2626.7,2626.6,4.1279]
[1727141485003,1.42466,2627.1,2626.6,4.1279]
[1727141485514,1.42466,2627.1,2626.6,3.6536]
[1727141486014,0.38071,2626.8,2626.6,3.6536]
[1727141486902,0.38072,2626.7,2626.6,3.6536]
[1727141487106,0.38077,2626.4,2626.3,3.2078]
[1727141487305,4.109,2627.0,2626.1,0.4868]
[1727141487306,0.38079,2626.2,2626.1,0.4868]
[1727141487815,0.4431,2626.3,2626.1,0.4868]
[1727141487816,0.82389,2626.3,2626.1,0.4868]
[1727141487999,0.38079,2626.2,2626.1,0.4868]
[1727141488502,0.4431,2626.3,2626.1,0.4868]
[1727141488701,0.38079,2626.2,2626.1,0.4868]
[1727141489002,0.4431,2626.3,2625.9,3.2078]
[1727141489003,0.38082,2626.0,2625.9,3.2078]
[1727141489209,1.39507,2626.3,2625.7,0.4578]
[1727141489210,0.38085,2625.8,2625.7,0.4578]
[1727141489402,5.50407,2626.3,2625.6,0.4884]
[1727141489403,0.38083,2626.0,2625.6,0.4884]
[1727141489602,0.4493,2626.2,2625.6,0.4884]
[1727141490004,0.38086,2625.7,2625.6,0.4884]
[1727141491908,0.38088,2625.6,2625.5,3.2078]
[1727141492105,0.86898,2625.6,2625.5,3.2078]
[1727141492698,0.3809,2625.5,2625.0,44.38876]
[1727141493007,0.4881,2625.6,2625.0,3.2078]
[1727141493207,0.38091,2625.4,2625.0,3.2078]
[1727141494305,0.38095,2625.1,2625.0,3.2078]
[1727141495007,4.61004,2625.5,2625.0,3.2078]
[1727141495008,0.38093,2625.3,2625.0,3.2078]
[1727141495208,3.2078,2625.5,2625.0,3.2078]
[1727141495410,0.38095,2625.1,2625.0,3.2078]
[1727141495803,0.38095,2625.1,2624.9,0.4461]
[1727141496110,0.38097,2625.0,2624.9,0.4461]
[1727141497102,0.38096,2625.1,2624.9,0.4461]
[1727141497711,0.38097,2625.0,2624.9,0.4461]
[1727141498107,3.2078,2625.5,2624.9,0.4461]
[1727141498312,0.4881,2625.6,2625.2,3.2078]
[1727141498313,0.38091,2625.4,2625.2,3.2078]
[1727141498511,0.3809,2625.5,2625.2,3.2078]
[1727141499810,0.38092,2625.3,2624.9,3.6539]
[1727141500012,0.38094,2625.2,2624.9,3.6539]
[1727141500400,0.38094,2625.2,2625.0,40.8]
[1727141500808,0.38093,2625.3,2625.0,40.8]
[1727141501209,0.4881,2625.6,2625.0,40.8]
[1727141501507,0.4881,2625.6,2625.2,3.2078]
[1727141501709,0.86899,2625.6,2625.3,0.4641]
[1727141502020,0.38091,2625.4,2625.3,0.4641]
[1727141502210,1.44032,2625.6,2625.0,40.8]
[1727141502512,0.38094,2625.2,2624.9,3.6539]
[1727141502814,0.38094,2625.2,2624.9,44.4539]
[1727141503015,0.38097,2625.0,2624.9,44.4539]
[1727141503211,0.38097,2625.0,2624.9,3.6539]
[1727141503709,0.67364906,2625.6,2624.9,3.6539]
[1727141503913,0.4881,2625.6,2624.9,3.6539]
[1727141504411,0.38094,2625.2,2624.9,3.6539]
[1727141504616,0.38095,2625.1,2624.9,3.6539]
[1727141505211,0.38097,2625.0,2624.9,3.6539]
[1727141507408,4.64812,2625.6,2624.9,3.6539]
[1727141507409,0.38096,2625.1,2624.9,3.6539]
[1727141508118,4.133,2625.4,2624.9,3.6539]
[1727141508620,0.38095,2625.1,2624.9,3.6539]
[1727141508819,0.38096,2625.1,2624.9,3.6539]
[1727141509323,0.38091,2625.5,2625.0,4.19057]
[1727141509514,0.3809,2625.5,2625.2,3.2078]
[1727141510024,0.4881,2625.6,2625.2,3.2078]
[1727141510025,0.38091,2625.4,2625.2,3.2078]
[1727141510718,0.95224,2625.5,2624.9,0.4461]
[1727141510926,0.38095,2625.2,2624.9,0.4461]
[1727141511417,0.4881,2625.6,2625.1,3.2078]
[1727141511619,4.6211,2625.6,2625.1,3.2078]
[1727141511916,0.3809,2625.5,2625.2,0.4429]
[1727141512725,4.6211,2625.6,2625.2,0.4429]
[1727141513119,0.3809,2625.5,2625.2,0.4429]
[1727141513319,3.2078,2625.9,2625.2,0.82382]
[1727141513517,12.7328,2626.3,2625.7,3.2078]
[1727141513721,4.133,2626.2,2625.8,0.4422]
[1727141513921,4.133,2626.2,2625.8,0.8895]
[1727141514121,0.38081,2626.1,2625.8,0.8895]
[1727141514714,4.133,2626.2,2625.8,0.8895]
[1727141515121,4.5138,2626.2,2625.8,0.8895]
[1727141515528,0.38082,2626.1,2625.8,0.8895]
[1727141515729,4.132,2626.2,2625.8,0.8895]
[1727141516029,4.132,2626.2,2625.7,3.2078]
[1727141516030,0.38085,2625.8,2625.7,3.2078]
[1727141516925,3.2078,2626.0,2625.2,3.2078]
[1727141517121,0.38087,2625.7,2625.2,3.2078]
[1727141517323,0.4253,2625.9,2625.2,3.2078]
[1727141517722,0.38089,2625.5,2625.2,3.2078]
[1727141518223,0.38089,2625.6,2625.2,3.2078]
[1727141518621,0.3809,2625.5,2625.2,3.2078]
[1727141520226,0.4253,2625.9,2625.2,3.2078]
[1727141520227,0.38091,2625.4,2625.2,3.2078]
[1727141520436,0.3809,2625.5,2625.2,3.2078]
[1727141520725,0.38091,2625.4,2625.2,3.2078]
[1727141520934,0.38092,2625.3,2625.2,3.2078]
[1727141521323,0.38094,2625.2,2625.1,0.4467]
[1727141521522,0.38094,2625.2,2624.8,3.2078]
[1727141521523,0.38095,2625.2,2624.8,3.2078]
[1727141521933,0.4593,2625.6,2624.8,3.2078]
[1727141522230,4.5573,2625.9,2625.4,3.2078]
[1727141522429,0.4253,2625.9,2625.5,0.4691]
[1727141522735,0.38086,2625.8,2625.5,0.91]
[1727141522927,0.38088,2625.6,2625.5,0.91]
[1727141523231,0.38088,2625.6,2625.5,0.4691]
[1727141524125,0.38087,2625.7,2625.5,0.4691]
[1727141524324,0.95206,2626.0,2625.5,0.4691]
[1727141524325,0.38088,2625.6,2625.5,0.4691]
[1727141524523,0.38089,2625.5,2625.4,3.2078]
[1727141524728,0.38094,2625.2,2624.9,0.4409]
[1727141525536,0.38095,2625.1,2624.9,0.4409]
[1727141525834,0.38095,2625.2,2624.9,0.4409]
[1727141526028,3.6604,2625.8,2625.0,3.2078]
[1727141526336,0.3809,2625.5,2625.0,3.2078]
[1727141526528,0.3809,2625.5,2625.1,40.8]
[1727141526732,4.132,2625.7,2625.0,3.2078]
[1727141526733,0.38095,2625.1,2625.0,3.2078]
[1727141528629,0.81915,2625.1,2625.0,3.2078]
[1727141528837,8.40799,2625.1,2624.5,40.8]
[1727141529039,0.381,2624.8,2624.4,0.9398]
[1727141529330,1.39059,2625.1,2624.4,0.9398]
[1727141529331,0.38097,2625.0,2624.6,3.2078]
[1727141529542,0.38098,2624.9,2624.6,3.2078]
[1727141529831,0.38101,2624.8,2624.6,3.2078]
[1727141530627,0.38099,2624.9,2624.6,3.2078]
[1727141531028,0.38098,2625.0,2624.6,3.2078]
[1727141531238,4.5873,2625.4,2624.9,3.2078]
[1727141531530,0.38097,2625.0,2624.6,3.2078]
[1727141531742,0.38099,2624.9,2624.6,3.2078]
[1727141531933,0.95233,2625.3,2624.6,3.2078]
[1727141532136,0.38097,2625.0,2624.6,3.2078]
[1727141532527,0.38097,2625.0,2624.7,3.8096]
[1727141533031,0.38097,2625.0,2624.6,3.2078]
[1727141533333,4.67585547,2625.3,2624.6,3.58882]
[1727141533529,4.67585547,2625.3,2624.7,0.38101]
[1727141533831,0.38096,2625.1,2624.9,3.2078]
[1727141534032,0.38096,2625.1,2625.0,0.4613]
[1727141534724,4.67585547,2625.3,2624.6,4.20142007]
[1727141534725,0.38097,2625.0,2624.6,4.20142007]
[1727141534927,1.46805547,2625.2,2624.6,4.66272007]
[1727141535132,0.38094,2625.2,2624.9,3.2078]
[1727141535328,0.38094,2625.2,2625.0,0.4476]
[1727141535543,4.67585547,2625.3,2624.7,0.99362007]
[1727141535544,0.38099,2624.9,2624.7,0.99362007]
[1727141535737,0.38099,2624.9,2624.6,5.11032007]
[1727141536235,0.38099,2624.9,2624.7,40.8]
[1727141536439,1.46805547,2625.2,2624.7,40.8]
[1727141536440,0.381,2624.8,2624.7,40.8]
[1727141536633,5.10040547,2625.2,2624.6,4.1167]
[1727141536634,0.38101,2624.7,2624.6,4.1167]
[1727141537735,2.68,2624.8,2624.4,41.79769082]
[1727141538040,2.68,2624.8,2624.2,0.4184]
[1727141538041,0.38107,2624.3,2624.2,0.4184]
[1727141538240,2.68,2624.3,2623.9,4.20549082]
[1727141538440,1.46805547,2624.5,2624.2,3.2078]
[1727141538441,0.38106,2624.4,2624.2,3.2078]
[1727141538747,0.38111,2624.0,2623.9,4.0787]
[1727141538936,0.3811,2624.1,2623.9,4.0787]
[1727141539449,0.38111,2624.0,2623.9,4.0787]
[1727141539645,0.38111,2624.1,2623.9,4.0787]
[1727141539939,0.38109,2624.2,2623.9,4.0787]
[1727141540339,0.38111,2624.1,2623.9,4.0787]
[1727141540735,0.38107,2624.3,2623.9,4.0787]
[1727141540935,0.38109,2624.2,2623.9,4.0787]
[1727141541340,0.38108,2624.3,2623.9,4.0787]
[1727141541841,6.51389547,2624.6,2624.2,3.2078]
[1727141542044,0.38104,2624.5,2624.2,3.2078]
[1727141542449,0.38106,2624.4,2624.2,3.2078]
[1727141542742,0.38106,2624.4,2623.9,4.0787]
[1727141543535,0.3811,2624.1,2623.9,3.6262]
[1727141543739,5.61739,2624.6,2623.9,3.6262]
[1727141543740,0.38109,2624.2,2623.9,3.6262]
[1727141544746,2.68,2624.3,2623.9,3.6262]
[1727141544938,0.4226,2624.1,2623.9,3.6262]
[1727141545840,0.38111,2624.0,2623.9,3.6262]
[1727141546342,0.38116,2623.7,2623.6,3.2078]
[1727141546546,3.06116,2623.7,2623.6,3.2078]
[1727141547446,7.3533,2623.9,2623.6,3.2078]
[1727141547744,4.214,2624.0,2623.7,0.4417]
[1727141547949,4.214,2624.0,2623.7,0.9061]
[1727141549657,4.215,2624.4,2623.9,3.2078]
[1727141549839,0.4265,2624.5,2623.9,3.58891]
[1727141549840,4.59605,2624.5,2623.9,3.58891]
[1727141550038,0.38105,2624.4,2623.9,3.2078]
[1727141550242,0.38105,2624.4,2624.0,40.8]
[1727141550639,4.215,2624.5,2623.9,3.2078]
[1727141550640,2.68,2624.3,2623.9,3.2078]
[1727141550838,2.68,2624.3,2623.7,0.9061]
[1727141550839,3.06108,2624.3,2623.7,1.28725]
[1727141551049,2.68,2624.3,2623.9,3.2078]
[1727141551253,0.38108,2624.2,2624.0,40.8]
[1727141551455,0.38108,2624.2,2623.9,3.2078]
[1727141551657,0.38109,2624.2,2623.9,3.2078]
[1727141552245,2.68,2624.3,2623.9,3.2078]
[1727141552445,0.38109,2624.2,2623.9,3.2078]
[1727141552643,0.3811,2624.1,2623.9,3.2078]
[1727141554650,2.68,2624.3,2623.9,3.2078]
[1727141555049,3.06107,2624.3,2623.9,3.2078]
[1727141555247,2.68,2624.3,2623.9,3.2078]
[1727141555446,3.06107,2624.3,2623.9,3.2078]
[1727141555653,0.38109,2624.2,2623.9,3.2078]
[1727141555857,3.06108,2624.3,2623.9,3.2078]
[1727141556346,3.06108,2624.3,2623.9,44.0078]
[1727141557156,0.38109,2624.2,2623.9,44.0078]
[1727141557861,0.38109,2624.2,2623.9,40.8]
[1727141558359,0.3811,2624.1,2623.9,40.8]
[1727141558560,0.3811,2624.1,2623.7,0.9061]
[1727141559060,0.3811,2624.1,2623.8,40.8]
[1727141559061,2.68,2624.1,2623.8,40.8]
[1727141559253,2.68,2624.1,2623.7,0.9061]
[1727141559254,3.06111,2624.1,2623.7,0.9061]
[1727141559456,0.38113,2624.0,2623.7,0.9061]
[1727141559651,2.68,2624.1,2623.7,0.9061]
[1727141559652,3.0611,2624.1,2623.7,0.9061]
[1727141560261,3.5198,2624.1,2623.7,0.9061]
[1727141560760,0.38112,2624.0,2623.7,0.9061]
[1727141560956,0.38111,2624.0,2623.7,0.9061]
[1727141561353,3.51981,2624.1,2623.7,0.9061]
[1727141562060,0.38111,2624.0,2623.7,0.9061]
[1727141562363,3.51981,2624.1,2623.7,0.9061]
[1727141563368,0.38111,2624.0,2623.7,0.9061]
[1727141563553,3.51981,2624.1,2623.7,0.9061]
[1727141564362,4.59608,2624.2,2623.7,0.9061]
[1727141564665,8.30831547,2625.0,2624.2,0.38107]
[1727141564855,0.38102,2624.7,2624.3,4.0585]
[1727141565050,0.8651,2624.9,2624.3,4.0585]
[1727141565258,0.4158,2624.9,2624.5,0.38103]
[1727141565456,0.4158,2624.9,2624.6,3.58882]
[1727141565657,0.8651,2625.3,2624.6,3.2078]
[1727141565853,0.4158,2625.3,2624.9,3.2078]
[1727141566158,12.02189932,2625.9,2625.2,3.2078]
[1727141566355,0.38087,2625.7,2625.2,3.58873]
[1727141566559,2.68,2625.6,2625.2,3.2078]
[1727141566862,0.38092,2625.3,2625.0,0.8507]
[1727141567661,0.38097,2625.0,2624.9,3.2078]
[1727141568159,0.38102,2624.7,2624.5,0.4326]
[1727141568563,2.68,2624.6,2624.5,0.4326]
[1727141568754,3.06103,2624.6,2624.3,3.2078]
[1727141569155,0.38108,2624.3,2623.8,3.2078]
[1727141569555,0.38108,2624.3,2623.9,0.4326]
[1727141569773,0.38108,2624.2,2623.9,0.4326]
[1727141570161,2.68,2624.4,2623.9,0.4326]
[1727141570362,0.3811,2624.1,2623.9,0.4326]
[1727141571765,0.38115,2623.8,2623.2,3.2078]
[1727141572060,3.8112,2624.0,2623.2,4.44572]
[1727141572061,0.38113,2623.9,2623.2,4.44572]
[1727141572257,4.41513,2623.9,2623.2,4.44572]
[1727141572458,4.41509,2624.2,2623.5,3.58898]
[1727141572659,4.41509,2624.2,2623.5,3.2078]
[1727141572660,4.034,2624.2,2623.5,3.2078]
[1727141572860,0.38114,2623.9,2623.5,3.2078]
[1727141573664,4.034,2624.2,2623.2,4.44572]
[1727141573665,0.38114,2623.8,2623.2,4.44572]
[1727141574457,0.38115,2623.8,2623.2,4.44573]
[1727141574659,0.38116,2623.7,2623.2,4.0645]
[1727141575165,0.95275,2624.1,2623.2,4.0645]
[1727141575166,0.38115,2623.8,2623.2,4.0645]
[1727141575362,0.95275,2624.1,2623.2,4.0645]
[1727141575664,0.38116,2623.7,2623.2,4.0645]
[1727141575871,0.38116,2623.7,2623.3,40.8]
[1727141576861,0.38116,2623.7,2623.2,4.0645]
[1727141577059,0.38115,2623.8,2623.2,4.0645]
[1727141577462,0.38116,2623.7,2623.2,4.0645]
[1727141577775,3.2078,2623.9,2623.2,4.0645]
[1727141577976,0.38117,2623.7,2623.2,4.0645]
[1727141578568,0.4164,2623.8,2623.2,4.0645]
[1727141578967,0.38118,2623.6,2623.2,4.0645]
[1727141579166,0.38116,2623.7,2623.2,4.0645]
[1727141579564,0.38118,2623.6,2623.2,4.0645]
[1727141579767,0.4164,2623.8,2623.2,4.0645]
[1727141580072,0.38119,2623.5,2623.2,4.0645]
[1727141580272,0.3812,2623.4,2623.2,4.0645]
[1727141580866,0.38121,2623.3,2623.2,4.0645]
[1727141581069,0.9529,2623.7,2623.2,3.6158]
[1727141581070,0.38121,2623.4,2623.2,3.6158]